[Event "Early-Titled-Tuesday-Blitz-March-26-2024"]
[Site "Chess.com"]
[Date "2024.03.26"]
[Round "7"]
[White "venturov"]
[Black "Marielchessy"]
[Result "1-0"]
[WhiteElo "2520"]
[BlackElo "2335"]
[TimeControl "180+1"]
[EndTime "9:13:50 PDT"]
[Termination "venturov won by resignation"]

1. e4 {[%clk 0:03:00.9]} 1... c5 {[%clk 0:02:59.6]} 2. Nf3 {[%clk 0:03:00.3]}
2... d6 {[%clk 0:03:00.1]} 3. d4 {[%clk 0:03:00]} 3... cxd4 {[%clk 0:03:00.7]}
4. Nxd4 {[%clk 0:03:00.9]} 4... Nf6 {[%clk 0:03:00.4]} 5. Nc3 {[%clk 0:03:01]}
5... a6 {[%clk 0:03:00.8]} 6. Bc4 {[%clk 0:03:00.8]} 6... e6 {[%clk 0:03:00.8]}
7. O-O {[%clk 0:03:00.4]} 7... b5 {[%clk 0:03:00.6]} 8. Bb3 {[%clk 0:03:00.3]}
8... Be7 {[%clk 0:03:01.1]} 9. Re1 {[%clk 0:03:00.8]} 9... O-O {[%clk
0:03:01.6]} 10. Qf3 {[%clk 0:03:00.5]} 10... Bb7 {[%clk 0:03:01.4]} 11. Qg3
{[%clk 0:02:59]} 11... Nbd7 {[%clk 0:03:00.9]} 12. Bxe6 {[%clk 0:02:57.9]} 12...
Nh5 {[%clk 0:02:44]} 13. Qh3 {[%clk 0:02:53.4]} 13... fxe6 {[%clk 0:02:39.1]}
14. Qxh5 {[%clk 0:02:42.9]} 14... Rf6 {[%clk 0:02:29.1]} 15. Qh3 {[%clk
0:02:13.9]} 15... Nf8 {[%clk 0:02:10]} 16. Be3 {[%clk 0:01:57.2]} 16... b4
{[%clk 0:01:51.8]} 17. Na4 {[%clk 0:01:56.6]} 17... Rc8 {[%clk 0:01:27]} 18.
Rac1 {[%clk 0:01:41.8]} 18... Bxe4 {[%clk 0:01:20.4]} 19. Bg5 {[%clk 0:01:40.9]}
19... Bf5 {[%clk 0:01:16.5]} 20. Nxf5 {[%clk 0:01:38.9]} 20... exf5 {[%clk
0:01:01.7]} 21. Bxf6 {[%clk 0:01:36.1]} 21... Bxf6 {[%clk 0:01:01.4]} 22. Qxf5
{[%clk 0:01:35.3]} 22... Rb8 {[%clk 0:00:57.4]} 23. g3 {[%clk 0:01:25.2]} 23...
Ng6 {[%clk 0:00:50.3]} 24. Rcd1 {[%clk 0:01:21.3]} 24... Qf8 {[%clk 0:00:47.1]}
25. Qd5+ {[%clk 0:01:18.4]} 25... Kh8 {[%clk 0:00:46.6]} 26. Qxd6 {[%clk
0:01:19]} 26... Qg8 {[%clk 0:00:44.3]} 27. Nc5 {[%clk 0:01:13.7]} 27... Rd8
{[%clk 0:00:41.3]} 28. Qxa6 {[%clk 0:01:07.5]} 28... Bxb2 {[%clk 0:00:38.8]} 29.
Rxd8 {[%clk 0:01:04.3]} 29... Qxd8 {[%clk 0:00:28.1]} 30. Qc6 {[%clk 0:01:04]}
1-0

[Event "Early-Titled-Tuesday-Blitz-March-26-2024"]
[Site "Chess.com"]
[Date "2024.03.26"]
[Round "7"]
[White "NovoselovRoman"]
[Black "ViktoriyaTarasova"]
[Result "1-0"]
[WhiteElo "2553"]
[BlackElo "2364"]
[TimeControl "180+1"]
[EndTime "9:13:54 PDT"]
[Termination "NovoselovRoman won by resignation"]

1. d4 {[%clk 0:03:00.9]} 1... Nf6 {[%clk 0:02:58.8]} 2. Nc3 {[%clk 0:02:51]}
2... d5 {[%clk 0:02:58]} 3. Bf4 {[%clk 0:02:51.1]} 3... c6 {[%clk 0:02:55.2]} 4.
e3 {[%clk 0:02:49.2]} 4... Bf5 {[%clk 0:02:54.8]} 5. Bd3 {[%clk 0:02:49.3]} 5...
e6 {[%clk 0:02:54.7]} 6. Nge2 {[%clk 0:02:48.3]} 6... Bxd3 {[%clk 0:02:54.1]} 7.
Qxd3 {[%clk 0:02:48.3]} 7... Bd6 {[%clk 0:02:52.9]} 8. e4 {[%clk 0:02:41.3]}
8... dxe4 {[%clk 0:02:50.5]} 9. Nxe4 {[%clk 0:02:42.2]} 9... Nxe4 {[%clk
0:02:50.7]} 10. Qxe4 {[%clk 0:02:42]} 10... Bxf4 {[%clk 0:02:51.4]} 11. Nxf4
{[%clk 0:02:35.3]} 11... Nd7 {[%clk 0:02:51]} 12. O-O-O {[%clk 0:02:16.8]} 12...
Nf6 {[%clk 0:02:50.8]} 13. Qf3 {[%clk 0:02:11.2]} 13... Qa5 {[%clk 0:02:50.2]}
14. Kb1 {[%clk 0:02:10.9]} 14... O-O {[%clk 0:02:50.1]} 15. h4 {[%clk
0:02:05.9]} 15... Nd5 {[%clk 0:02:47.2]} 16. Nh5 {[%clk 0:01:58.5]} 16... g6
{[%clk 0:02:43.3]} 17. Ng3 {[%clk 0:01:57.1]} 17... h5 {[%clk 0:02:40.2]} 18.
Ne4 {[%clk 0:01:55.2]} 18... Kg7 {[%clk 0:02:34.7]} 19. Ng5 {[%clk 0:01:48]}
19... Qd8 {[%clk 0:02:30.9]} 20. Rh3 {[%clk 0:01:36.1]} 20... Qf6 {[%clk
0:02:29.4]} 21. Qe4 {[%clk 0:00:58.8]} 21... Qf4 {[%clk 0:02:27.7]} 22. Qe1
{[%clk 0:00:47.2]} 22... Qc7 {[%clk 0:02:22.9]} 23. Rf3 {[%clk 0:00:45.1]} 23...
Qe7 {[%clk 0:02:20.3]} 24. Qe5+ {[%clk 0:00:42.1]} 24... Kg8 {[%clk 0:02:14.7]}
25. c4 {[%clk 0:00:36.6]} 25... Nc7 {[%clk 0:02:13.5]} 26. Ne4 {[%clk
0:00:36.6]} 26... Ne8 {[%clk 0:02:11.3]} 27. Rg1 {[%clk 0:00:35]} 27... f6
{[%clk 0:02:08.2]} 28. Qf4 {[%clk 0:00:31.2]} 28... Qg7 {[%clk 0:01:56.6]} 29.
g4 {[%clk 0:00:27.7]} 29... hxg4 {[%clk 0:01:56.4]} 30. Rxg4 {[%clk 0:00:14.6]}
30... f5 {[%clk 0:01:55.9]} 31. Rxg6 {[%clk 0:00:08.8]} 31... fxe4 {[%clk
0:01:31.3]} 32. Qxf8+ {[%clk 0:00:07.2]} 32... Kh7 {[%clk 0:01:31.1]} 33. Rxg7+
{[%clk 0:00:07.7]} 33... Nxg7 {[%clk 0:01:30.8]} 34. Qxa8 {[%clk 0:00:07.8]}
34... exf3 {[%clk 0:01:31.3]} 35. Qxb7 {[%clk 0:00:08.3]} 1-0

[Event "Early-Titled-Tuesday-Blitz-March-26-2024"]
[Site "Chess.com"]
[Date "2024.03.26"]
[Round "7"]
[White "Revan_2002"]
[Black "the_chess_child"]
[Result "1/2-1/2"]
[WhiteElo "2593"]
[BlackElo "2848"]
[TimeControl "180+1"]
[EndTime "9:13:58 PDT"]
[Termination "Game drawn by agreement"]

1. d4 {[%clk 0:02:59.6]} 1... Nf6 {[%clk 0:02:59.4]} 2. c4 {[%clk 0:03:00.1]}
2... g6 {[%clk 0:02:59.9]} 3. Nc3 {[%clk 0:02:58.2]} 3... Bg7 {[%clk 0:03:00.2]}
4. e4 {[%clk 0:02:58.6]} 4... d6 {[%clk 0:03:00.6]} 5. Be2 {[%clk 0:02:57.6]}
5... O-O {[%clk 0:03:00.8]} 6. h4 {[%clk 0:02:57.8]} 6... h5 {[%clk 0:02:52.9]}
7. Nf3 {[%clk 0:02:54.5]} 7... Bg4 {[%clk 0:02:49.4]} 8. Ng5 {[%clk 0:02:52.7]}
8... Bxe2 {[%clk 0:02:46]} 9. Qxe2 {[%clk 0:02:53.6]} 9... Nc6 {[%clk
0:02:44.3]} 10. Be3 {[%clk 0:02:53.4]} 10... Ng4 {[%clk 0:02:42.5]} 11. O-O-O
{[%clk 0:02:50.3]} 11... e5 {[%clk 0:02:41.4]} 12. dxe5 {[%clk 0:02:45.9]} 12...
Nxe3 {[%clk 0:02:32.7]} 13. Qxe3 {[%clk 0:02:42.7]} 13... Nxe5 {[%clk
0:02:32.6]} 14. Qe2 {[%clk 0:02:31.6]} 14... c6 {[%clk 0:02:30.6]} 15. f4 {[%clk
0:02:27.1]} 15... Ng4 {[%clk 0:02:30.1]} 16. e5 {[%clk 0:02:26.9]} 16... Re8
{[%clk 0:02:22.9]} 17. Rxd6 {[%clk 0:01:55.3]} 17... Qxd6 {[%clk 0:02:21.3]} 18.
exd6 {[%clk 0:01:54.8]} 18... Rxe2 {[%clk 0:02:21.6]} 19. Nxe2 {[%clk
0:01:55.7]} 19... Rd8 {[%clk 0:02:21.8]} 20. c5 {[%clk 0:01:52.7]} 20... Ne3
{[%clk 0:02:17.1]} 21. b4 {[%clk 0:01:45.2]} 21... Nd5 {[%clk 0:02:04.4]} 22. a3
{[%clk 0:01:43.9]} 22... Re8 {[%clk 0:02:04.4]} 23. Kd2 {[%clk 0:01:40.7]} 23...
Bf6 {[%clk 0:02:04.3]} 24. Rh3 {[%clk 0:01:08.3]} 24... Rxe2+ {[%clk 0:01:51]}
25. Kxe2 {[%clk 0:01:09.2]} 25... Nxf4+ {[%clk 0:01:51.3]} 26. Ke3 {[%clk
0:01:07.1]} 26... Nxh3 {[%clk 0:01:51.9]} 27. gxh3 {[%clk 0:01:07.1]} 27... Kf8
{[%clk 0:01:46.9]} 28. Nh7+ {[%clk 0:00:48.9]} 28... Kg7 {[%clk 0:01:44.3]} 29.
Nxf6 {[%clk 0:00:47.4]} 29... Kxf6 {[%clk 0:01:45.2]} 30. Kf4 {[%clk 0:00:47.5]}
30... b5 {[%clk 0:01:21.1]} 31. Ke4 {[%clk 0:00:17.6]} 31... Ke6 {[%clk
0:01:20.5]} 32. Kf4 {[%clk 0:00:17.6]} 32... f6 {[%clk 0:01:20.4]} 33. Ke4
{[%clk 0:00:17.5]} 33... Kd7 {[%clk 0:01:17.7]} 1/2-1/2

[Event "Early-Titled-Tuesday-Blitz-March-26-2024"]
[Site "Chess.com"]
[Date "2024.03.26"]
[Round "7"]
[White "Josetricks"]
[Black "superchess02"]
[Result "1-0"]
[WhiteElo "2727"]
[BlackElo "2854"]
[TimeControl "180+1"]
[EndTime "9:14:00 PDT"]
[Termination "Josetricks won by resignation"]

1. d4 {[%clk 0:03:00.9]} 1... Nf6 {[%clk 0:03:00.1]} 2. Nc3 {[%clk 0:03:00.8]}
2... d5 {[%clk 0:03:00.1]} 3. Bf4 {[%clk 0:03:00.8]} 3... Bf5 {[%clk 0:02:59.6]}
4. e3 {[%clk 0:02:59.3]} 4... e6 {[%clk 0:02:59.6]} 5. Nf3 {[%clk 0:02:59.7]}
5... Bd6 {[%clk 0:02:59]} 6. Ne5 {[%clk 0:03:00.3]} 6... h6 {[%clk 0:02:55.3]}
7. f3 {[%clk 0:02:57]} 7... Bh7 {[%clk 0:02:41.9]} 8. g4 {[%clk 0:02:49.2]} 8...
Nfd7 {[%clk 0:02:41.5]} 9. Nd3 {[%clk 0:02:41]} 9... Bxf4 {[%clk 0:02:37.7]} 10.
Nxf4 {[%clk 0:02:30.9]} 10... c5 {[%clk 0:02:38.1]} 11. Qd2 {[%clk 0:02:27.5]}
11... Nc6 {[%clk 0:02:34.4]} 12. O-O-O {[%clk 0:02:24.7]} 12... cxd4 {[%clk
0:02:11.6]} 13. exd4 {[%clk 0:02:21.4]} 13... g5 {[%clk 0:02:12.2]} 14. Nh5
{[%clk 0:02:17.4]} 14... Nb4 {[%clk 0:02:11.7]} 15. Bd3 {[%clk 0:02:12.5]} 15...
Bxd3 {[%clk 0:02:02.9]} 16. cxd3 {[%clk 0:02:13.4]} 16... Qb6 {[%clk 0:02:03.3]}
17. Kb1 {[%clk 0:02:08.8]} 17... O-O-O {[%clk 0:01:34]} 18. h4 {[%clk
0:02:03.1]} 18... Rhg8 {[%clk 0:01:23.9]} 19. hxg5 {[%clk 0:02:01.3]} 19... hxg5
{[%clk 0:01:24.8]} 20. Qh2 {[%clk 0:01:58.8]} 20... Qc7 {[%clk 0:01:20.2]} 21.
Qf2 {[%clk 0:01:50]} 21... Kb8 {[%clk 0:01:19.7]} 22. a3 {[%clk 0:01:47.4]}
22... Nc6 {[%clk 0:01:12.5]} 23. Nb5 {[%clk 0:01:46.2]} 23... Qb6 {[%clk
0:01:12.7]} 24. Qh2+ {[%clk 0:01:39.8]} 24... e5 {[%clk 0:01:12.9]} 25. dxe5
{[%clk 0:01:38]} 25... Ndxe5 {[%clk 0:00:54.3]} 26. d4 {[%clk 0:01:37.1]} 26...
Qxb5 {[%clk 0:00:53.9]} 27. dxe5 {[%clk 0:01:36.6]} 27... Ka8 {[%clk 0:00:54.5]}
28. Nf6 {[%clk 0:01:34.4]} 28... Rgf8 {[%clk 0:00:53.3]} 29. Rhe1 {[%clk
0:01:32.6]} 29... d4 {[%clk 0:00:51.9]} 30. Qd2 {[%clk 0:01:30.6]} 30... Nxe5
{[%clk 0:00:50]} 31. Qxg5 {[%clk 0:01:27.4]} 31... Rfe8 {[%clk 0:00:19.4]} 32.
Nxe8 {[%clk 0:01:21.6]} 32... Rxe8 {[%clk 0:00:20.3]} 33. f4 {[%clk 0:01:19.5]}
33... f6 {[%clk 0:00:18.3]} 34. Qh5 {[%clk 0:01:11.6]} 1-0

[Event "Early-Titled-Tuesday-Blitz-March-26-2024"]
[Site "Chess.com"]
[Date "2024.03.26"]
[Round "7"]
[White "InitiatingASC"]
[Black "only_strong_moves"]
[Result "0-1"]
[WhiteElo "2370"]
[BlackElo "2710"]
[TimeControl "180+1"]
[EndTime "9:14:00 PDT"]
[Termination "only_strong_moves won by resignation"]

1. d4 {[%clk 0:03:00.9]} 1... Nf6 {[%clk 0:02:59.9]} 2. c4 {[%clk 0:03:00.9]}
2... e6 {[%clk 0:03:00.6]} 3. Nc3 {[%clk 0:03:01]} 3... d5 {[%clk 0:03:01.3]} 4.
cxd5 {[%clk 0:03:00.1]} 4... exd5 {[%clk 0:03:01]} 5. Bg5 {[%clk 0:02:59.9]}
5... c6 {[%clk 0:03:01.6]} 6. Qc2 {[%clk 0:02:59.3]} 6... h6 {[%clk 0:03:02]} 7.
Bh4 {[%clk 0:02:58.7]} 7... a5 {[%clk 0:03:02.7]} 8. e3 {[%clk 0:02:57.1]} 8...
Na6 {[%clk 0:03:03]} 9. a3 {[%clk 0:02:56.8]} 9... Nc7 {[%clk 0:03:03.6]} 10.
Bd3 {[%clk 0:02:56.1]} 10... Ne6 {[%clk 0:03:04.3]} 11. Nf3 {[%clk 0:02:48.5]}
11... Be7 {[%clk 0:03:02.1]} 12. O-O {[%clk 0:02:46.6]} 12... O-O {[%clk
0:03:02.7]} 13. Rab1 {[%clk 0:02:44.7]} 13... Nd7 {[%clk 0:02:56.7]} 14. Bxe7
{[%clk 0:02:37.8]} 14... Qxe7 {[%clk 0:02:57.6]} 15. b4 {[%clk 0:02:38]} 15...
axb4 {[%clk 0:02:57.2]} 16. axb4 {[%clk 0:02:38]} 16... Ng5 {[%clk 0:02:31.1]}
17. Nxg5 {[%clk 0:02:26.6]} 17... Qxg5 {[%clk 0:02:32]} 18. b5 {[%clk
0:02:26.4]} 18... c5 {[%clk 0:02:22.8]} 19. dxc5 {[%clk 0:01:42.9]} 19... Nxc5
{[%clk 0:02:23.7]} 20. Ne2 {[%clk 0:01:42.8]} 20... Nxd3 {[%clk 0:02:22.5]} 21.
Qxd3 {[%clk 0:01:42]} 21... Bf5 {[%clk 0:02:23.1]} 22. Qxd5 {[%clk 0:01:42.1]}
22... Bxb1 {[%clk 0:02:23.3]} 23. Qxg5 {[%clk 0:01:42]} 23... hxg5 {[%clk
0:02:24.2]} 24. Rxb1 {[%clk 0:01:41.7]} 24... Ra2 {[%clk 0:02:16.2]} 25. Nd4
{[%clk 0:01:37.7]} 25... Rfa8 {[%clk 0:02:16.8]} 26. g4 {[%clk 0:01:31.6]} 26...
Ra1 {[%clk 0:02:15.6]} 27. Rxa1 {[%clk 0:01:31.3]} 27... Rxa1+ {[%clk
0:02:16.5]} 28. Kg2 {[%clk 0:01:31.5]} 28... f6 {[%clk 0:02:16.3]} 29. Kf3
{[%clk 0:01:21.1]} 29... Rc1 {[%clk 0:02:15.6]} 30. h3 {[%clk 0:01:13.9]} 30...
Kf7 {[%clk 0:02:15.2]} 31. Kg3 {[%clk 0:01:12.1]} 31... g6 {[%clk 0:02:13.6]}
32. Nf3 {[%clk 0:01:06.4]} 32... Ke6 {[%clk 0:02:12.3]} 33. h4 {[%clk
0:01:02.9]} 33... gxh4+ {[%clk 0:02:12.2]} 34. Kxh4 {[%clk 0:01:03.2]} 34... Kd5
{[%clk 0:02:08.6]} 35. Kg3 {[%clk 0:00:52]} 35... Ke4 {[%clk 0:02:02.9]} 36. Kg2
{[%clk 0:00:47.9]} 36... b6 {[%clk 0:01:49.7]} 37. Nd4 {[%clk 0:00:46.8]} 37...
Rc4 {[%clk 0:01:46.2]} 38. Nc6 {[%clk 0:00:44.2]} 38... Kd5 {[%clk 0:01:39.6]}
39. Ne7+ {[%clk 0:00:10.3]} 39... Kd6 {[%clk 0:01:38.9]} 40. Ng8 {[%clk
0:00:03.6]} 40... Rxg4+ {[%clk 0:01:38.4]} 41. Kf3 {[%clk 0:00:03.7]} 41... Rg5
{[%clk 0:01:37.4]} 42. Nxf6 {[%clk 0:00:03.6]} 42... Rf5+ {[%clk 0:01:37.7]} 0-1

[Event "Early-Titled-Tuesday-Blitz-March-26-2024"]
[Site "Chess.com"]
[Date "2024.03.26"]
[Round "7"]
[White "Shuvalov"]
[Black "Zohid6"]
[Result "0-1"]
[WhiteElo "2604"]
[BlackElo "2904"]
[TimeControl "180+1"]
[EndTime "9:14:01 PDT"]
[Termination "Zohid6 won by resignation"]

1. d4 {[%clk 0:03:00.9]} 1... d5 {[%clk 0:02:59.4]} 2. c4 {[%clk 0:03:01.1]}
2... e6 {[%clk 0:02:59.5]} 3. Nf3 {[%clk 0:03:01]} 3... Nf6 {[%clk 0:02:59.2]}
4. Nc3 {[%clk 0:03:01.2]} 4... c6 {[%clk 0:02:58.5]} 5. e3 {[%clk 0:03:00.5]}
5... Nbd7 {[%clk 0:02:57.6]} 6. Be2 {[%clk 0:03:00.6]} 6... Bd6 {[%clk 0:02:55]}
7. O-O {[%clk 0:03:00.2]} 7... O-O {[%clk 0:02:55]} 8. b3 {[%clk 0:03:00.3]}
8... Re8 {[%clk 0:02:51.8]} 9. Bb2 {[%clk 0:02:58.9]} 9... b6 {[%clk 0:02:52.2]}
10. Bd3 {[%clk 0:02:56.6]} 10... Bb7 {[%clk 0:02:49.7]} 11. Re1 {[%clk
0:02:50.4]} 11... c5 {[%clk 0:02:44.7]} 12. cxd5 {[%clk 0:02:49.9]} 12... exd5
{[%clk 0:02:45.6]} 13. Rc1 {[%clk 0:02:44]} 13... a6 {[%clk 0:02:45.5]} 14. Rc2
{[%clk 0:02:40.8]} 14... Rc8 {[%clk 0:02:42.8]} 15. Rd2 {[%clk 0:02:40.1]} 15...
Qc7 {[%clk 0:02:27.2]} 16. dxc5 {[%clk 0:02:36.3]} 16... bxc5 {[%clk 0:02:24.5]}
17. Bf5 {[%clk 0:02:22.3]} 17... Rcd8 {[%clk 0:02:20.3]} 18. g3 {[%clk
0:01:50.4]} 18... Ne5 {[%clk 0:02:14.8]} 19. Nxe5 {[%clk 0:01:45.9]} 19... Bxe5
{[%clk 0:02:15.7]} 20. Na4 {[%clk 0:01:42.7]} 20... Bxb2 {[%clk 0:02:09.8]} 21.
Nxb2 {[%clk 0:01:43.6]} 21... g6 {[%clk 0:02:04.1]} 22. Bh3 {[%clk 0:01:42.8]}
22... Ne4 {[%clk 0:02:04.3]} 23. Rc2 {[%clk 0:01:39.5]} 23... Qa5 {[%clk
0:02:03.5]} 24. Nd3 {[%clk 0:01:35.6]} 24... Nc3 {[%clk 0:01:39.3]} 25. Qd2
{[%clk 0:01:22.1]} 25... d4 {[%clk 0:01:39.5]} 26. exd4 {[%clk 0:01:15.3]} 26...
cxd4 {[%clk 0:01:40.4]} 27. Rxe8+ {[%clk 0:01:03.5]} 27... Rxe8 {[%clk
0:01:41.3]} 28. Nf4 {[%clk 0:01:01.6]} 28... Qe5 {[%clk 0:01:26.6]} 29. Bg2
{[%clk 0:00:30.5]} 29... Qe1+ {[%clk 0:01:15]} 30. Qxe1 {[%clk 0:00:30.7]} 30...
Rxe1+ {[%clk 0:01:15.7]} 31. Bf1 {[%clk 0:00:31.6]} 31... g5 {[%clk 0:01:14.4]}
32. Nd3 {[%clk 0:00:22.7]} 32... Ra1 {[%clk 0:01:11.7]} 33. Nc5 {[%clk
0:00:20.6]} 33... Bf3 {[%clk 0:01:09.8]} 34. Rd2 {[%clk 0:00:19.8]} 34... Ne2+
{[%clk 0:01:09.4]} 35. Rxe2 {[%clk 0:00:19.9]} 35... Bxe2 {[%clk 0:01:10.3]} 0-1

[Event "Early-Titled-Tuesday-Blitz-March-26-2024"]
[Site "Chess.com"]
[Date "2024.03.26"]
[Round "7"]
[White "Cambek64"]
[Black "Kate1606"]
[Result "1-0"]
[WhiteElo "2477"]
[BlackElo "2070"]
[TimeControl "180+1"]
[EndTime "9:14:04 PDT"]
[Termination "Cambek64 won by checkmate"]

1. d4 {[%clk 0:02:55.6]} 1... Nf6 {[%clk 0:02:59.5]} 2. Nc3 {[%clk 0:02:52.7]}
2... a6 {[%clk 0:02:58.4]} 3. e4 {[%clk 0:02:51.4]} 3... d6 {[%clk 0:02:57.7]}
4. f3 {[%clk 0:02:50.8]} 4... Nbd7 {[%clk 0:02:56.4]} 5. Be3 {[%clk 0:02:51.3]}
5... g6 {[%clk 0:02:55.6]} 6. Qd2 {[%clk 0:02:51.8]} 6... Bg7 {[%clk 0:02:56.1]}
7. O-O-O {[%clk 0:02:52]} 7... O-O {[%clk 0:02:56.6]} 8. g4 {[%clk 0:02:52.1]}
8... e5 {[%clk 0:02:54.6]} 9. d5 {[%clk 0:02:50.2]} 9... b5 {[%clk 0:02:29.9]}
10. h4 {[%clk 0:02:47.1]} 10... h5 {[%clk 0:02:21.5]} 11. Bh6 {[%clk 0:02:42.9]}
11... hxg4 {[%clk 0:02:16.3]} 12. Kb1 {[%clk 0:02:23.9]} 12... gxf3 {[%clk
0:02:05.1]} 13. Nxf3 {[%clk 0:02:23.3]} 13... Nc5 {[%clk 0:01:54.9]} 14. Bxg7
{[%clk 0:02:11]} 14... Kxg7 {[%clk 0:01:55.8]} 15. Bd3 {[%clk 0:02:10.4]} 15...
Bg4 {[%clk 0:01:43.6]} 16. Qe3 {[%clk 0:02:04.4]} 16... b4 {[%clk 0:01:39.1]}
17. Ne2 {[%clk 0:02:03]} 17... a5 {[%clk 0:01:15.5]} 18. Rdg1 {[%clk 0:02:03.4]}
18... Bh5 {[%clk 0:01:12.6]} 19. Ng3 {[%clk 0:02:02.2]} 19... Rh8 {[%clk
0:01:08.6]} 20. Nxe5 {[%clk 0:01:53.6]} 20... dxe5 {[%clk 0:01:08.1]} 21. Qxc5
{[%clk 0:01:52.9]} 21... Bf3 {[%clk 0:00:56.8]} 22. Rh3 {[%clk 0:01:33.3]} 22...
Ng4 {[%clk 0:00:39.9]} 23. Nf5+ {[%clk 0:01:29.3]} 23... gxf5 {[%clk 0:00:38.9]}
24. Rxf3 {[%clk 0:01:29.7]} 24... Rxh4 {[%clk 0:00:35.9]} 25. Rxf5 {[%clk
0:01:26.9]} 25... Qh8 {[%clk 0:00:25.9]} 26. Rg5+ {[%clk 0:01:25]} 26... Kf6
{[%clk 0:00:21.6]} 27. R5xg4 {[%clk 0:01:23]} 27... Rxg4 {[%clk 0:00:20.8]} 28.
Rxg4 {[%clk 0:01:23.3]} 28... Qh1+ {[%clk 0:00:21.4]} 29. Rg1 {[%clk 0:01:22.9]}
29... Qh2 {[%clk 0:00:17.3]} 30. Qc6+ {[%clk 0:01:18.2]} 30... Ke7 {[%clk
0:00:16.3]} 31. Qxc7+ {[%clk 0:01:18.5]} 31... Kf8 {[%clk 0:00:15.9]} 32. Qc5+
{[%clk 0:01:16]} 32... Ke8 {[%clk 0:00:15]} 33. Bb5+ {[%clk 0:01:15.1]} 33...
Kd8 {[%clk 0:00:12.7]} 34. Rg8# {[%clk 0:01:14.1]} 1-0

[Event "Early-Titled-Tuesday-Blitz-March-26-2024"]
[Site "Chess.com"]
[Date "2024.03.26"]
[Round "7"]
[White "RebecaJimnz"]
[Black "Incognizance"]
[Result "1-0"]
[WhiteElo "2245"]
[BlackElo "1905"]
[TimeControl "180+1"]
[EndTime "9:14:09 PDT"]
[Termination "RebecaJimnz won by checkmate"]

1. e4 {[%clk 0:03:00.9]} 1... c5 {[%clk 0:02:57.1]} 2. Nc3 {[%clk 0:03:00.4]}
2... Nc6 {[%clk 0:02:56.7]} 3. g3 {[%clk 0:03:01.1]} 3... g6 {[%clk 0:02:56.8]}
4. Bg2 {[%clk 0:03:01.9]} 4... Bg7 {[%clk 0:02:57.6]} 5. d3 {[%clk 0:03:02.5]}
5... e6 {[%clk 0:02:57.6]} 6. Be3 {[%clk 0:03:03]} 6... Nge7 {[%clk 0:02:57.9]}
7. Bxc5 {[%clk 0:03:02.7]} 7... d6 {[%clk 0:02:54.3]} 8. Be3 {[%clk 0:03:03.4]}
8... O-O {[%clk 0:02:54.7]} 9. Qd2 {[%clk 0:03:04.1]} 9... Re8 {[%clk
0:02:47.1]} 10. Bh6 {[%clk 0:03:04.5]} 10... Bh8 {[%clk 0:02:46.2]} 11. h4
{[%clk 0:03:04.5]} 11... b6 {[%clk 0:02:45.8]} 12. h5 {[%clk 0:03:04.4]} 12...
Bb7 {[%clk 0:02:44.1]} 13. Bg5 {[%clk 0:02:46.6]} 13... f6 {[%clk 0:02:38.4]}
14. Be3 {[%clk 0:01:43.7]} 14... g5 {[%clk 0:02:38.3]} 15. h6 {[%clk 0:01:32.2]}
15... e5 {[%clk 0:02:35.6]} 16. f4 {[%clk 0:01:28.8]} 16... gxf4 {[%clk
0:02:29.5]} 17. gxf4 {[%clk 0:01:29.7]} 17... Ng6 {[%clk 0:02:28.7]} 18. f5
{[%clk 0:01:16.8]} 18... Nge7 {[%clk 0:02:22.8]} 19. Bf3 {[%clk 0:01:17]} 19...
Kf8 {[%clk 0:02:17.1]} 20. Bh5 {[%clk 0:01:15.3]} 20... Ng8 {[%clk 0:02:12.2]}
21. Bxe8 {[%clk 0:01:12.5]} 21... Qxe8 {[%clk 0:02:12.3]} 22. Nf3 {[%clk
0:01:11.5]} 22... Qf7 {[%clk 0:02:05.9]} 23. O-O-O {[%clk 0:01:10.9]} 23... Ke7
{[%clk 0:02:06.4]} 24. Rdg1 {[%clk 0:01:10]} 24... Rf8 {[%clk 0:02:05.2]} 25.
Nd5+ {[%clk 0:01:08.5]} 25... Kd7 {[%clk 0:02:04.2]} 26. Qc3 {[%clk 0:01:00.3]}
26... Nge7 {[%clk 0:02:00.9]} 27. Nxe7 {[%clk 0:00:44.2]} 27... Nxe7 {[%clk
0:01:57.7]} 28. Kb1 {[%clk 0:00:44.1]} 28... Rc8 {[%clk 0:01:57.6]} 29. Qa3
{[%clk 0:00:42.7]} 29... Nc6 {[%clk 0:01:55.9]} 30. d4 {[%clk 0:00:34.9]} 30...
exd4 {[%clk 0:01:47.9]} 31. Nxd4 {[%clk 0:00:35.8]} 31... Nxd4 {[%clk
0:01:47.5]} 32. Bxd4 {[%clk 0:00:36.4]} 32... Bxe4 {[%clk 0:01:44.8]} 33. Qxa7+
{[%clk 0:00:36]} 33... Rc7 {[%clk 0:01:45.1]} 34. Qa4+ {[%clk 0:00:32.2]} 34...
Kd8 {[%clk 0:01:33.4]} 35. Rh2 {[%clk 0:00:29.5]} 35... Rc4 {[%clk 0:01:11]} 36.
Bxb6+ {[%clk 0:00:29.4]} 36... Kc8 {[%clk 0:01:08]} 37. Qa6+ {[%clk 0:00:27.9]}
37... Kd7 {[%clk 0:01:07.9]} 38. Qa7+ {[%clk 0:00:26.1]} 38... Ke8 {[%clk
0:01:07.4]} 39. Qb8+ {[%clk 0:00:23.7]} 39... Ke7 {[%clk 0:01:04.7]} 40. Qd8#
{[%clk 0:00:23]} 1-0